[Event "Titled Tuesday Blitz August 16 Late 2022"]
[White "Lorenzo De La Riva, Lazaro"]
[Black "Hoffmann, Asa"]
[WhiteFideId "2268809"]
[BlackFideId "2001470"]
[WhiteElo "2325"]
[BlackElo "2117"]
[Result "1-0"]
[Round "06"]
[TimeControl "180+1"]
[Date "2022.08.18"]
[WhiteClock "0:00:00"]
[BlackClock "0:00:00"]

1. d4 {[%clk 0:00:00]}  Nf6 {[%clk 0:00:00]} 2. Nc3 {[%clk 0:00:00]}  d6 {[%clk 0:00:00]} 3. e4 {[%clk 0:00:00]}  c6 {[%clk 0:00:00]} 4. Nge2 {[%clk 0:00:00]}  Nbd7 {[%clk 0:00:00]} 5. g3 {[%clk 0:00:00]}  e5 {[%clk 0:00:00]} 6. Bg2 {[%clk 0:00:00]}  Be7 {[%clk 0:00:00]} 7. O-O {[%clk 0:00:00]}  b5 {[%clk 0:00:00]} 8. a3 {[%clk 0:00:00]}  a6 {[%clk 0:00:00]} 9. h3 {[%clk 0:00:00]}  Qc7 {[%clk 0:00:00]} 10. f4 {[%clk 0:00:00]}  Bb7 {[%clk 0:00:00]} 11. g4 {[%clk 0:00:00]}  h6 {[%clk 0:00:00]} 12. Kh1 {[%clk 0:00:00]}  O-O-O {[%clk 0:00:00]} 13. d5 {[%clk 0:00:00]}  c5 {[%clk 0:00:00]} 14. b4 {[%clk 0:00:00]}  cxb4 {[%clk 0:00:00]} 15. axb4 {[%clk 0:00:00]}  Kb8 {[%clk 0:00:00]} 16. Be3 {[%clk 0:00:00]}  Rc8 {[%clk 0:00:00]} 17. Nxb5 {[%clk 0:00:00]}  Qxc2 {[%clk 0:00:00]} 18. Na7 {[%clk 0:00:00]}  Qxd1 {[%clk 0:00:00]} 19. Rfxd1 {[%clk 0:00:00]}  Rc2 {[%clk 0:00:00]} 20. Bf1 {[%clk 0:00:00]}  exf4 {[%clk 0:00:00]} 21. Nc6+ {[%clk 0:00:00]}  Bxc6 {[%clk 0:00:00]} 22. dxc6 {[%clk 0:00:00]}  Rxc6 {[%clk 0:00:00]} 23. Bxf4 {[%clk 0:00:00]}  Nxe4 {[%clk 0:00:00]} 24. Nd4 {[%clk 0:00:00]}  Rb6 {[%clk 0:00:00]} 25. Rdb1 {[%clk 0:00:00]}  Kb7 {[%clk 0:00:00]} 26. Bg2 {[%clk 0:00:00]}  d5 {[%clk 0:00:00]} 27. Nf5 {[%clk 0:00:00]}  Bxb4 {[%clk 0:00:00]} 28. Ne3 {[%clk 0:00:00]}  Ndf6 {[%clk 0:00:00]} 29. Nxd5 {[%clk 0:00:00]}  Nxd5 {[%clk 0:00:00]} 30. Bxe4 {[%clk 0:00:00]}  Rd8 {[%clk 0:00:00]} 31. Rd1 {[%clk 0:00:00]}  Rb5 {[%clk 0:00:00]} 32. Bg3 {[%clk 0:00:00]}  a5 {[%clk 0:00:00]} 33. Rd3 {[%clk 0:00:00]}  Kc6 {[%clk 0:00:00]} 34. Rc1+ {[%clk 0:00:00]}  Rc5 {[%clk 0:00:00]} 35. Rcd1 {[%clk 0:00:00]}  a4 {[%clk 0:00:00]} 36. Rd4 {[%clk 0:00:00]}  Bc3 {[%clk 0:00:00]} 37. Rxa4 {[%clk 0:00:00]}  Rb8 {[%clk 0:00:00]} 38. Bf2 {[%clk 0:00:00]}  Rb4 {[%clk 0:00:00]} 39. Rxb4 {[%clk 0:00:00]}  Bxb4 {[%clk 0:00:00]} 40. Bxc5 {[%clk 0:00:00]}  Bxc5 {[%clk 0:00:00]} 41. Rxd5 {[%clk 0:00:00]} 1-0


[Site "https://www.chess.com"]

[Event "Titled Tuesday Blitz August 16 Late 2022"]
[White "Melikyan, Gnel"]
[Black "Vasquez Schroeder, Rodrigo"]
[WhiteFideId "54109990"]
[BlackFideId "3400042"]
[WhiteElo "1772"]
[BlackElo "2567"]
[Result "1/2-1/2"]
[Round "06"]
[TimeControl "180+1"]
[Date "2022.08.16"]
[WhiteClock "0:00:13"]
[BlackClock "0:00:13"]

1. e4 {[%clk 0:03:00]}  c5 {[%clk 0:02:59]} 2. Nf3 {[%clk 0:03:01]}  d6 {[%clk 0:02:59]} 3. d4 {[%clk 0:03:01]}  cxd4 {[%clk 0:03:00]} 4. Nxd4 {[%clk 0:03:02]}  Nf6 {[%clk 0:03:00]} 5. Nc3 {[%clk 0:03:03]}  Nc6 {[%clk 0:03:00]} 6. Bc4 {[%clk 0:03:02]}  Qb6 {[%clk 0:02:59]} 7. Nb3 {[%clk 0:02:58]}  e6 {[%clk 0:02:59]} 8. Bf4 {[%clk 0:02:56]}  Ne5 {[%clk 0:02:56]} 9. Bb5+ {[%clk 0:02:50]}  Bd7 {[%clk 0:02:56]} 10. Bxd7+ {[%clk 0:02:43]}  Nfxd7 {[%clk 0:02:55]} 11. Qd4 {[%clk 0:02:40]}  Qxd4 {[%clk 0:02:48]} 12. Nxd4 {[%clk 0:02:39]}  a6 {[%clk 0:02:48]} 13. O-O-O {[%clk 0:02:37]}  O-O-O {[%clk 0:02:47]} 14. Bg3 {[%clk 0:02:29]}  g5 {[%clk 0:02:40]} 15. f3 {[%clk 0:02:24]}  Be7 {[%clk 0:02:39]} 16. Kb1 {[%clk 0:02:16]}  b5 {[%clk 0:02:33]} 17. Nce2 {[%clk 0:02:05]}  Kb7 {[%clk 0:02:33]} 18. Nc1 {[%clk 0:02:04]}  Rc8 {[%clk 0:02:33]} 19. Nd3 {[%clk 0:02:02]}  Bf6 {[%clk 0:02:26]} 20. Nxe5 {[%clk 0:01:57]}  Nxe5 {[%clk 0:02:26]} 21. Ne2 {[%clk 0:01:45]}  Nc4 {[%clk 0:02:23]} 22. c3 {[%clk 0:01:42]}  Rhd8 {[%clk 0:02:04]} 23. Rd3 {[%clk 0:01:35]}  Be5 {[%clk 0:02:01]} 24. Rhd1 {[%clk 0:01:32]}  Kc7 {[%clk 0:02:01]} 25. b3 {[%clk 0:01:29]}  Bxg3 {[%clk 0:01:56]} 26. hxg3 {[%clk 0:01:20]}  Ne5 {[%clk 0:01:56]} 27. R3d2 {[%clk 0:01:19]}  h6 {[%clk 0:01:54]} 28. Kb2 {[%clk 0:01:16]}  Rd7 {[%clk 0:01:49]} 29. Rh1 {[%clk 0:01:07]}  Rh8 {[%clk 0:01:48]} 30. Rh5 {[%clk 0:01:03]}  Rdd8 {[%clk 0:01:08]} 31. Rd1 {[%clk 0:01:01]}  Rh7 {[%clk 0:00:46]} 32. Nd4 {[%clk 0:00:51]}  Nd7 {[%clk 0:00:44]} 33. Rdh1 {[%clk 0:00:38]}  Rdh8 {[%clk 0:00:43]} 34. g4 {[%clk 0:00:37]}  Nf6 {[%clk 0:00:42]} 35. R5h2 {[%clk 0:00:35]}  d5 {[%clk 0:00:30]} 36. exd5 {[%clk 0:00:31]}  Nxd5 {[%clk 0:00:30]} 37. g3 {[%clk 0:00:27]}  Kd6 {[%clk 0:00:30]} 38. Rd1 {[%clk 0:00:25]}  Ke5 {[%clk 0:00:30]} 39. Re2+ {[%clk 0:00:19]}  Kf6 {[%clk 0:00:30]} 40. Rh1 {[%clk 0:00:19]}  h5 {[%clk 0:00:30]} 41. Reh2 {[%clk 0:00:19]}  h4 {[%clk 0:00:30]} 42. gxh4 {[%clk 0:00:18]}  Rxh4 {[%clk 0:00:30]} 43. Rxh4 {[%clk 0:00:18]}  Rxh4 {[%clk 0:00:30]} 44. Re1 {[%clk 0:00:17]}  e5 {[%clk 0:00:27]} 45. Nc2 {[%clk 0:00:16]}  Rh2 {[%clk 0:00:26]} 46. a3 {[%clk 0:00:14]}  Ke6 {[%clk 0:00:25]} 47. c4 {[%clk 0:00:14]}  bxc4 {[%clk 0:00:25]} 48. bxc4 {[%clk 0:00:15]}  Nb6 {[%clk 0:00:25]} 49. Kb3 {[%clk 0:00:15]}  Nxc4 {[%clk 0:00:22]} 50. Nd4+ {[%clk 0:00:14]}  Kd5 {[%clk 0:00:23]} 51. Nf5 {[%clk 0:00:13]}  Nd2+ {[%clk 0:00:20]} 52. Kc3 {[%clk 0:00:14]}  Nxf3 {[%clk 0:00:21]} 53. Rd1+ {[%clk 0:00:14]}  Ke4 {[%clk 0:00:20]} 54. Rd7 {[%clk 0:00:11]}  f6 {[%clk 0:00:20]} 55. Rd6 {[%clk 0:00:11]}  Kf4 {[%clk 0:00:19]} 56. Rxf6 {[%clk 0:00:12]}  Kxg4 {[%clk 0:00:20]} 57. Ne3+ {[%clk 0:00:12]}  Kg3 {[%clk 0:00:14]} 58. Nf1+ {[%clk 0:00:13]}  Kg2 {[%clk 0:00:14]} 59. Nxh2 {[%clk 0:00:13]}  Nxh2 {[%clk 0:00:15]} 60. Rf5 {[%clk 0:00:14]}  g4 {[%clk 0:00:15]} 61. Rxe5 {[%clk 0:00:14]}  g3 {[%clk 0:00:16]} 62. Re6 {[%clk 0:00:15]}  Nf3 {[%clk 0:00:16]} 63. Rxa6 {[%clk 0:00:14]}  Kf2 {[%clk 0:00:17]} 64. Rg6 {[%clk 0:00:15]}  g2 {[%clk 0:00:15]} 65. a4 {[%clk 0:00:14]}  Ne5 {[%clk 0:00:13]} 66. Rg5 {[%clk 0:00:12]}  Nc6 {[%clk 0:00:12]} 67. Kc4 {[%clk 0:00:12]}  g1=Q {[%clk 0:00:12]} 68. Rxg1 {[%clk 0:00:12]}  Kxg1 {[%clk 0:00:13]} 69. Kb5 {[%clk 0:00:12]}  Nd4+ {[%clk 0:00:13]} 70. Kc5 {[%clk 0:00:11]}  Nb3+ {[%clk 0:00:13]} 71. Kb4 {[%clk 0:00:11]}  Nd4 {[%clk 0:00:13]} 72. Kc4 {[%clk 0:00:11]}  Nc6 {[%clk 0:00:13]} 73. Kc5 {[%clk 0:00:12]}  Na5 {[%clk 0:00:13]} 74. Kb5 {[%clk 0:00:12]}  Nb3 {[%clk 0:00:13]} 75. a5 {[%clk 0:00:13]}  Nxa5 {[%clk 0:00:13]} 1/2-1/2


[Site "https://www.chess.com"]

[Event "Titled Tuesday Blitz August 16 Late 2022"]
[White "Michalski, Olaf"]
[Black "Mendez Fortes, Eduardo Jesus"]
[WhiteFideId "1106740"]
[BlackFideId "3502376"]
[WhiteElo "1937"]
[BlackElo "2307"]
[Result "0-1"]
[Round "06"]
[TimeControl "180+1"]
[Date "2022.08.18"]
[WhiteClock "0:00:00"]
[BlackClock "0:00:00"]

1. d4 {[%clk 0:00:00]}  Nf6 {[%clk 0:00:00]} 2. c4 {[%clk 0:00:00]}  e6 {[%clk 0:00:00]} 3. Nf3 {[%clk 0:00:00]}  Bb4+ {[%clk 0:00:00]} 4. Nbd2 {[%clk 0:00:00]}  d5 {[%clk 0:00:00]} 5. Qc2 {[%clk 0:00:00]}  O-O {[%clk 0:00:00]} 6. e3 {[%clk 0:00:00]}  b6 {[%clk 0:00:00]} 7. cxd5 {[%clk 0:00:00]}  exd5 {[%clk 0:00:00]} 8. Bd3 {[%clk 0:00:00]}  g6 {[%clk 0:00:00]} 9. O-O {[%clk 0:00:00]}  Bb7 {[%clk 0:00:00]} 10. Ne5 {[%clk 0:00:00]}  Bd6 {[%clk 0:00:00]} 11. f4 {[%clk 0:00:00]}  c5 {[%clk 0:00:00]} 12. Ndf3 {[%clk 0:00:00]}  Ne4 {[%clk 0:00:00]} 13. Bxe4 {[%clk 0:00:00]}  dxe4 {[%clk 0:00:00]} 14. Ng5 {[%clk 0:00:00]}  cxd4 {[%clk 0:00:00]} 15. exd4 {[%clk 0:00:00]}  Nd7 {[%clk 0:00:00]} 16. Ng4 {[%clk 0:00:00]}  Nf6 {[%clk 0:00:00]} 17. f5 {[%clk 0:00:00]}  Nxg4 {[%clk 0:00:00]} 0-1


[Site "https://www.chess.com"]

[Event "Titled Tuesday Blitz August 16 Late 2022"]
[White "Mirimanian, Hayk"]
[Black "Remolar Gallen, Jose"]
[WhiteFideId "4700180"]
[BlackFideId "2215187"]
[WhiteElo "2280"]
[BlackElo "2205"]
[Result "1-0"]
[Round "06"]
[TimeControl "180+1"]
[Date "2022.08.18"]
[WhiteClock "0:00:00"]
[BlackClock "0:00:00"]

1. e4 {[%clk 0:00:00]}  c5 {[%clk 0:00:00]} 2. Nf3 {[%clk 0:00:00]}  d6 {[%clk 0:00:00]} 3. d4 {[%clk 0:00:00]}  cxd4 {[%clk 0:00:00]} 4. Nxd4 {[%clk 0:00:00]}  Nf6 {[%clk 0:00:00]} 5. Nc3 {[%clk 0:00:00]}  a6 {[%clk 0:00:00]} 6. h4 {[%clk 0:00:00]}  e6 {[%clk 0:00:00]} 7. g4 {[%clk 0:00:00]}  Nc6 {[%clk 0:00:00]} 8. g5 {[%clk 0:00:00]}  Nd7 {[%clk 0:00:00]} 9. f4 {[%clk 0:00:00]}  h6 {[%clk 0:00:00]} 10. g6 {[%clk 0:00:00]}  Nxd4 {[%clk 0:00:00]} 11. gxf7+ {[%clk 0:00:00]}  Kxf7 {[%clk 0:00:00]} 12. Qxd4 {[%clk 0:00:00]}  Be7 {[%clk 0:00:00]} 13. Be3 {[%clk 0:00:00]}  Bxh4+ {[%clk 0:00:00]} 14. Bf2 {[%clk 0:00:00]}  Bxf2+ {[%clk 0:00:00]} 15. Qxf2 {[%clk 0:00:00]}  Qb6 {[%clk 0:00:00]} 16. Qf3 {[%clk 0:00:00]}  Qxb2 {[%clk 0:00:00]} 17. Rb1 {[%clk 0:00:00]}  Qxc2 {[%clk 0:00:00]} 18. Bc4 {[%clk 0:00:00]}  Nc5 {[%clk 0:00:00]} 19. f5 {[%clk 0:00:00]}  Rf8 {[%clk 0:00:00]} 20. O-O {[%clk 0:00:00]}  Kg8 {[%clk 0:00:00]} 21. Rf2 {[%clk 0:00:00]}  Qxb1+ {[%clk 0:00:00]} 22. Nxb1 {[%clk 0:00:00]}  d5 {[%clk 0:00:00]} 23. e5 {[%clk 0:00:00]}  dxc4 {[%clk 0:00:00]} 24. f6 {[%clk 0:00:00]}  Nd3 {[%clk 0:00:00]} 25. Rg2 {[%clk 0:00:00]}  Nxe5 {[%clk 0:00:00]} 26. Rxg7+ {[%clk 0:00:00]}  Kh8 {[%clk 0:00:00]} 27. Qe3 {[%clk 0:00:00]} 1-0


[Site "https://www.chess.com"]

[Event "Titled Tuesday Blitz August 16 Late 2022"]
[White "Oparin, Grigoriy"]
[Black "Levine, Joseph"]
[WhiteFideId "24125890"]
[BlackFideId "30940346"]
[WhiteElo "2639"]
[BlackElo "1810"]
[Result "0-1"]
[Round "06"]
[TimeControl "180+1"]
[Date "2022.08.16"]
[WhiteClock "0:00:03"]
[BlackClock "0:00:39"]

1. c4 {[%clk 0:03:00]}  e6 {[%clk 0:02:59]} 2. Nc3 {[%clk 0:03:00]}  d5 {[%clk 0:02:59]} 3. cxd5 {[%clk 0:03:01]}  exd5 {[%clk 0:03:00]} 4. d4 {[%clk 0:03:01]}  Nf6 {[%clk 0:03:01]} 5. Bg5 {[%clk 0:03:01]}  c6 {[%clk 0:03:01]} 6. e3 {[%clk 0:03:01]}  Bd6 {[%clk 0:03:01]} 7. Bd3 {[%clk 0:02:56]}  O-O {[%clk 0:03:01]} 8. Qc2 {[%clk 0:02:55]}  h6 {[%clk 0:03:01]} 9. Bf4 {[%clk 0:02:54]}  Bxf4 {[%clk 0:03:00]} 10. exf4 {[%clk 0:02:55]}  Re8+ {[%clk 0:03:00]} 11. Kf1 {[%clk 0:02:51]}  Qd6 {[%clk 0:02:46]} 12. g3 {[%clk 0:02:50]}  a6 {[%clk 0:02:41]} 13. Kg2 {[%clk 0:02:49]}  c5 {[%clk 0:02:38]} 14. dxc5 {[%clk 0:02:47]}  Qxc5 {[%clk 0:02:39]} 15. Nf3 {[%clk 0:02:46]}  Nc6 {[%clk 0:02:35]} 16. h3 {[%clk 0:02:40]}  Nb4 {[%clk 0:02:28]} 17. Qd2 {[%clk 0:02:40]}  d4 {[%clk 0:02:28]} 18. Na4 {[%clk 0:02:37]}  Qd6 {[%clk 0:02:26]} 19. Rac1 {[%clk 0:02:07]}  Nxa2 {[%clk 0:02:12]} 20. Rc4 {[%clk 0:02:05]}  b5 {[%clk 0:02:09]} 21. Rxd4 {[%clk 0:02:04]}  Qc6 {[%clk 0:02:08]} 22. Nc3 {[%clk 0:00:41]}  Bb7 {[%clk 0:02:08]} 23. Be2 {[%clk 0:00:40]}  Nxc3 {[%clk 0:02:06]} 24. bxc3 {[%clk 0:00:41]}  Ne4 {[%clk 0:01:58]} 25. Qd3 {[%clk 0:00:21]}  Nxc3 {[%clk 0:01:47]} 26. Rc1 {[%clk 0:00:21]}  Rac8 {[%clk 0:01:23]} 27. Bd1 {[%clk 0:00:22]}  Qc5 {[%clk 0:01:03]} 28. Rd7 {[%clk 0:00:18]}  Bc6 {[%clk 0:00:58]} 29. Rxc3 {[%clk 0:00:14]}  Bxf3+ {[%clk 0:00:58]} 30. Bxf3 {[%clk 0:00:11]}  Qxc3 {[%clk 0:00:57]} 31. Qd5 {[%clk 0:00:11]}  Qf6 {[%clk 0:00:52]} 32. Ra7 {[%clk 0:00:07]}  Re7 {[%clk 0:00:45]} 33. Ra8 {[%clk 0:00:02]}  Rxa8 {[%clk 0:00:45]} 34. Qxa8+ {[%clk 0:00:03]}  Kh7 {[%clk 0:00:45]} 35. Be4+ {[%clk 0:00:03]}  g6 {[%clk 0:00:44]} 36. h4 {[%clk 0:00:03]}  h5 {[%clk 0:00:41]} 37. Qd5 {[%clk 0:00:04]}  Qe6 {[%clk 0:00:40]} 38. Qxh5+ {[%clk 0:00:03]}  Kg7 {[%clk 0:00:39]} 0-1


[Site "https://www.chess.com"]

[Event "Titled Tuesday Blitz August 16 Late 2022"]
[White "Prieto Aranguren, Alain"]
[Black "Deviprasath, Sharvesh"]
[WhiteFideId "2268906"]
[BlackFideId "30938228"]
[WhiteElo "2224"]
[BlackElo "2102"]
[Result "0-1"]
[Round "06"]
[TimeControl "180+1"]
[Date "2022.08.18"]
[WhiteClock "0:00:00"]
[BlackClock "0:00:00"]

1. d4 {[%clk 0:00:00]}  Nf6 {[%clk 0:00:00]} 2. c4 {[%clk 0:00:00]}  g6 {[%clk 0:00:00]} 3. Nc3 {[%clk 0:00:00]}  Bg7 {[%clk 0:00:00]} 4. e4 {[%clk 0:00:00]}  d6 {[%clk 0:00:00]} 5. Be2 {[%clk 0:00:00]}  O-O {[%clk 0:00:00]} 6. Nf3 {[%clk 0:00:00]}  e5 {[%clk 0:00:00]} 7. d5 {[%clk 0:00:00]}  h6 {[%clk 0:00:00]} 8. O-O {[%clk 0:00:00]}  a5 {[%clk 0:00:00]} 9. Ne1 {[%clk 0:00:00]}  Na6 {[%clk 0:00:00]} 10. Be3 {[%clk 0:00:00]}  Nd7 {[%clk 0:00:00]} 11. Nd3 {[%clk 0:00:00]}  f5 {[%clk 0:00:00]} 12. f3 {[%clk 0:00:00]}  f4 {[%clk 0:00:00]} 13. Bf2 {[%clk 0:00:00]}  g5 {[%clk 0:00:00]} 14. a3 {[%clk 0:00:00]}  h5 {[%clk 0:00:00]} 15. b4 {[%clk 0:00:00]}  Rf6 {[%clk 0:00:00]} 16. c5 {[%clk 0:00:00]}  Rg6 {[%clk 0:00:00]} 17. c6 {[%clk 0:00:00]}  Nf6 {[%clk 0:00:00]} 18. b5 {[%clk 0:00:00]}  Nb8 {[%clk 0:00:00]} 19. Kh1 {[%clk 0:00:00]}  b6 {[%clk 0:00:00]} 20. a4 {[%clk 0:00:00]}  g4 {[%clk 0:00:00]} 21. Bh4 {[%clk 0:00:00]}  Qe8 {[%clk 0:00:00]} 22. Rg1 {[%clk 0:00:00]}  Nh7 {[%clk 0:00:00]} 23. Nf2 {[%clk 0:00:00]}  Bf6 {[%clk 0:00:00]} 24. Bxf6 {[%clk 0:00:00]}  Nxf6 {[%clk 0:00:00]} 25. Nd3 {[%clk 0:00:00]}  g3 {[%clk 0:00:00]} 26. h3 {[%clk 0:00:00]}  Qe7 {[%clk 0:00:00]} 27. Bf1 {[%clk 0:00:00]}  Nh7 {[%clk 0:00:00]} 28. Ne2 {[%clk 0:00:00]}  Qh4 {[%clk 0:00:00]} 29. Qd2 {[%clk 0:00:00]}  Ng5 {[%clk 0:00:00]} 30. Ndxf4 {[%clk 0:00:00]}  exf4 {[%clk 0:00:00]} 31. Qxf4 {[%clk 0:00:00]}  Qxf4 {[%clk 0:00:00]} 32. Nxf4 {[%clk 0:00:00]}  Rh6 {[%clk 0:00:00]} 33. h4 {[%clk 0:00:00]}  Nf7 {[%clk 0:00:00]} 34. Be2 {[%clk 0:00:00]}  Kg7 {[%clk 0:00:00]} 35. Nd3 {[%clk 0:00:00]}  Nh8 {[%clk 0:00:00]} 36. f4 {[%clk 0:00:00]}  Bg4 {[%clk 0:00:00]} 37. Bxg4 {[%clk 0:00:00]}  hxg4 {[%clk 0:00:00]} 38. Rge1 {[%clk 0:00:00]}  Ng6 {[%clk 0:00:00]} 39. e5 {[%clk 0:00:00]}  Nxh4 {[%clk 0:00:00]} 40. Kg1 {[%clk 0:00:00]}  Nf5 {[%clk 0:00:00]} 41. exd6 {[%clk 0:00:00]}  Rxd6 {[%clk 0:00:00]} 42. Re5 {[%clk 0:00:00]}  Kf6 {[%clk 0:00:00]} 43. Rae1 {[%clk 0:00:00]}  Nd7 {[%clk 0:00:00]} 44. cxd7 {[%clk 0:00:00]}  Rxd7 {[%clk 0:00:00]} 45. Re6+ {[%clk 0:00:00]}  Kg7 {[%clk 0:00:00]} 46. R1e5 {[%clk 0:00:00]}  Rf8 {[%clk 0:00:00]} 47. Rc6 {[%clk 0:00:00]}  Ne7 {[%clk 0:00:00]} 48. Rg5+ {[%clk 0:00:00]}  Kh7 {[%clk 0:00:00]} 49. Re6 {[%clk 0:00:00]}  Nxd5 {[%clk 0:00:00]} 50. Ne5 {[%clk 0:00:00]}  Rd6 {[%clk 0:00:00]} 51. Rxd6 {[%clk 0:00:00]}  cxd6 {[%clk 0:00:00]} 52. Nxg4 {[%clk 0:00:00]}  Nxf4 {[%clk 0:00:00]} 53. Ne3 {[%clk 0:00:00]}  Ne2+ {[%clk 0:00:00]} 54. Kh1 {[%clk 0:00:00]}  Rc8 {[%clk 0:00:00]} 55. Rxg3 {[%clk 0:00:00]}  Nxg3+ {[%clk 0:00:00]} 56. Kh2 {[%clk 0:00:00]}  Ne4 {[%clk 0:00:00]} 0-1


[Site "https://www.chess.com"]

[Event "Titled Tuesday Blitz August 16 Late 2022"]
[White "Roman, Rodrigo"]
[Black "Tanenbaum, Zachary"]
[WhiteFideId "3701220"]
[BlackFideId "2060850"]
[WhiteElo "2001"]
[BlackElo "2175"]
[Result "1/2-1/2"]
[Round "06"]
[TimeControl "180+1"]
[Date "2022.08.16"]
[WhiteClock "0:00:07"]
[BlackClock "0:00:03"]

1. e4 {[%clk 0:03:00]}  e5 {[%clk 0:02:59]} 2. Nf3 {[%clk 0:02:15]}  Nc6 {[%clk 0:02:59]} 3. Bb5 {[%clk 0:02:15]}  a6 {[%clk 0:03:00]} 4. Ba4 {[%clk 0:02:16]}  d6 {[%clk 0:03:00]} 5. O-O {[%clk 0:02:16]}  Nf6 {[%clk 0:03:00]} 6. Qe2 {[%clk 0:02:16]}  Be7 {[%clk 0:02:59]} 7. c3 {[%clk 0:02:15]}  O-O {[%clk 0:02:59]} 8. Rd1 {[%clk 0:02:14]}  b5 {[%clk 0:02:59]} 9. Bc2 {[%clk 0:02:12]}  Bb7 {[%clk 0:02:58]} 10. d4 {[%clk 0:02:09]}  exd4 {[%clk 0:02:53]} 11. Nxd4 {[%clk 0:02:08]}  Nxd4 {[%clk 0:02:48]} 12. cxd4 {[%clk 0:02:09]}  Re8 {[%clk 0:02:48]} 13. Nc3 {[%clk 0:02:09]}  Bf8 {[%clk 0:02:46]} 14. f3 {[%clk 0:02:04]}  d5 {[%clk 0:02:11]} 15. Bg5 {[%clk 0:01:53]}  h6 {[%clk 0:02:05]} 16. Bh4 {[%clk 0:01:51]}  b4 {[%clk 0:01:40]} 17. e5 {[%clk 0:01:37]}  bxc3 {[%clk 0:01:38]} 18. Qd3 {[%clk 0:01:38]}  Be7 {[%clk 0:00:49]} 19. exf6 {[%clk 0:01:33]}  Bxf6 {[%clk 0:00:50]} 20. Qh7+ {[%clk 0:01:27]}  Kf8 {[%clk 0:00:50]} 21. Re1 {[%clk 0:00:42]}  Re6 {[%clk 0:00:36]} 22. Bxf6 {[%clk 0:00:27]}  Qxf6 {[%clk 0:00:34]} 23. bxc3 {[%clk 0:00:27]}  Rae8 {[%clk 0:00:27]} 24. Rxe6 {[%clk 0:00:24]}  Rxe6 {[%clk 0:00:27]} 25. Rb1 {[%clk 0:00:24]}  Re2 {[%clk 0:00:03]} 26. Rxb7 {[%clk 0:00:18]}  Qg5 {[%clk 0:00:03]} 27. Qh8+ {[%clk 0:00:16]}  Ke7 {[%clk 0:00:03]} 28. Rxc7+ {[%clk 0:00:16]}  Kd6 {[%clk 0:00:04]} 29. Qf8+ {[%clk 0:00:11]}  Kxc7 {[%clk 0:00:04]} 30. Qc5+ {[%clk 0:00:11]}  Kd8 {[%clk 0:00:03]} 31. Qd6+ {[%clk 0:00:09]}  Kc8 {[%clk 0:00:03]} 32. Qxa6+ {[%clk 0:00:08]}  Kd8 {[%clk 0:00:03]} 33. Qd6+ {[%clk 0:00:09]}  Kc8 {[%clk 0:00:03]} 34. Qa6+ {[%clk 0:00:08]}  Kc7 {[%clk 0:00:04]} 35. Qxe2 {[%clk 0:00:09]}  Qc1+ {[%clk 0:00:04]} 36. Qd1 {[%clk 0:00:08]}  Qe3+ {[%clk 0:00:04]} 37. Kh1 {[%clk 0:00:09]}  Qxc3 {[%clk 0:00:05]} 38. Bb3 {[%clk 0:00:09]}  Qb4 {[%clk 0:00:04]} 39. Qc2+ {[%clk 0:00:09]}  Kb6 {[%clk 0:00:04]} 40. Qd1 {[%clk 0:00:08]}  Ka7 {[%clk 0:00:04]} 41. h3 {[%clk 0:00:09]}  g5 {[%clk 0:00:04]} 42. Qd3 {[%clk 0:00:08]}  h5 {[%clk 0:00:04]} 43. Bxd5 {[%clk 0:00:08]}  h4 {[%clk 0:00:04]} 44. Qe3 {[%clk 0:00:06]}  f5 {[%clk 0:00:03]} 45. Bb3 {[%clk 0:00:05]}  f4 {[%clk 0:00:02]} 46. Qf2 {[%clk 0:00:05]}  g4 {[%clk 0:00:02]} 47. d5+ {[%clk 0:00:05]}  Ka6 {[%clk 0:00:02]} 48. hxg4 {[%clk 0:00:05]}  h3 {[%clk 0:00:02]} 49. Qe2+ {[%clk 0:00:06]}  Ka7 {[%clk 0:00:02]} 50. gxh3 {[%clk 0:00:06]}  Qa5 {[%clk 0:00:02]} 51. Qf2+ {[%clk 0:00:06]}  Qb6 {[%clk 0:00:02]} 52. h4 {[%clk 0:00:07]}  Kb7 {[%clk 0:00:02]} 53. Qxb6+ {[%clk 0:00:07]}  Ka8 {[%clk 0:00:03]} 54. Kg2 {[%clk 0:00:07]} 1/2-1/2


[Site "https://www.chess.com"]

[Event "Titled Tuesday Blitz August 16 Late 2022"]
[White "Sailer, Mike"]
[Black "Vargas, Mauricio"]
[WhiteFideId "2012901"]
[BlackFideId "4404572"]
[WhiteElo "2109"]
[BlackElo "2004"]
[Result "1-0"]
[Round "06"]
[TimeControl "180+1"]
[Date "2022.08.18"]
[WhiteClock "0:00:00"]
[BlackClock "0:00:00"]

1. d4 {[%clk 0:00:00]}  d5 {[%clk 0:00:00]} 2. Nc3 {[%clk 0:00:00]}  c6 {[%clk 0:00:00]} 3. Bf4 {[%clk 0:00:00]}  Nd7 {[%clk 0:00:00]} 4. Qd2 {[%clk 0:00:00]}  h5 {[%clk 0:00:00]} 5. f3 {[%clk 0:00:00]}  f6 {[%clk 0:00:00]} 6. e4 {[%clk 0:00:00]}  g5 {[%clk 0:00:00]} 7. Be3 {[%clk 0:00:00]}  Nb6 {[%clk 0:00:00]} 8. Bd3 {[%clk 0:00:00]}  Be6 {[%clk 0:00:00]} 9. exd5 {[%clk 0:00:00]}  Nxd5 {[%clk 0:00:00]} 10. Bg6+ {[%clk 0:00:00]}  Bf7 {[%clk 0:00:00]} 11. Bxf7+ {[%clk 0:00:00]}  Kxf7 {[%clk 0:00:00]} 12. Nxd5 {[%clk 0:00:00]}  Qxd5 {[%clk 0:00:00]} 13. Ne2 {[%clk 0:00:00]}  Rd8 {[%clk 0:00:00]} 14. Nc3 {[%clk 0:00:00]}  Qa5 {[%clk 0:00:00]} 15. O-O-O {[%clk 0:00:00]}  Nh6 {[%clk 0:00:00]} 16. Kb1 {[%clk 0:00:00]}  Nf5 {[%clk 0:00:00]} 17. Bf2 {[%clk 0:00:00]}  e6 {[%clk 0:00:00]} 18. h4 {[%clk 0:00:00]}  g4 {[%clk 0:00:00]} 19. fxg4 {[%clk 0:00:00]}  hxg4 {[%clk 0:00:00]} 20. h5 {[%clk 0:00:00]}  Bh6 {[%clk 0:00:00]} 21. Qd3 {[%clk 0:00:00]}  g3 {[%clk 0:00:00]} 22. Bxg3 {[%clk 0:00:00]}  Rxd4 {[%clk 0:00:00]} 23. Qf3 {[%clk 0:00:00]}  Rhd8 {[%clk 0:00:00]} 24. Rxd4 {[%clk 0:00:00]}  Rxd4 {[%clk 0:00:00]} 25. Bf2 {[%clk 0:00:00]}  Rd5 {[%clk 0:00:00]} 26. Nxd5 {[%clk 0:00:00]}  cxd5 {[%clk 0:00:00]} 27. Qg4 {[%clk 0:00:00]} 1-0


[Site "https://www.chess.com"]